{"text_format":"2","workbook":"xlsx","n_sheets":4,"sheets":["1. részajánlat","2. részajánlat","3. részajánlat","4. részajánlat"],"not_rendered":{"charts":0,"images":0,"macros":0,"external_links":0,"defined_names":1,"comments":0,"pivot_tables":0},"unopened":[],"bounds":{"document_bytes":16777216,"sheet_cells":100000,"run_cost":"one","rows_first":2000,"rows_last":500,"rows_between":2000,"halvings":0,"cell_chars":16384,"cell_head_chars":4096},"cells_cut":0,"cells_raw":0,"read":"whole","date_system":"1900"}

{"sheet":"1. részajánlat","index":0,"n_rows":50,"n_cols":2,"rows_kept":50,"cut":false,"hidden":false,"merged":[[0,0,0,1]]}
["1. részajánlati kör"]
["Áru megnevezés","Mennyiség"]
["3M Soflex polírozó korong durva 8692C",20]
["ADC UltraCal XS 4x1,2ml kálcium UP-5145",5]
["Applikátor tips fine (fehér)",28]
["Applikátor tips fine (sárga)",60]
["Applikátor tips regular (zöld)",60]
["Aqua Meron 35gr 1172",5]
["Artikulációs fólia BK25 doboz",5]
["Cavit W (28 gr/doboz), kék",40]
["Cerkamed Chloraxid 5,25% 400ml",15]
["Charisma Topaz utántöltő tömőanyag A2 (Heraeus)4gr/db",20]
["Clean polish polírozó paszta 50g",5]
["DMG Honigum MixStar 380ml ",7]
["Dycal Ivory 13g+11g",5]
["Dyract XP A2 (20x0,25gr capsz/doboz)",5]
["Dyract XP A3 (20x0,25gr capsz/doboz)",3]
["Egyszerhasználatos műanyag nyálszívó 100 db/csomag",100]
["Elastic Cromo 450gr",120]
["Elmex gél 25gr",15]
["Endo öblítő kanül 0,3mmx23mm sárga 100db/doboz",30]
["Endocold spray (200 ml/flakon)",60]
["Endomethasone por+folyadék",3]
["EZ-ID jelölő szalag barna",2]
["GC Equia Coat 4ml",2]
["GC Equia Forte HT klinikai  A2 200db/csomag",1]
["GC EverX Flow Dentin 2ml+20db csőr",8]
["GC Fuji Otho LC Intro Pack 15gr+6,8ml",1]
["Glassix szetthez üvegszálas csapok 1-es",20]
["Hedström reszelő 15 (6db/doboz)",10]
["Hedström reszelő 15-40 (6db/doboz)",35]
["Hedström reszelő 45-80 (6db/doboz)",30]
["Hedström reszelő 60 (6db/doboz)",10]
["Kofferdám gumi 15 x 15, 07125 (kék)",100]
["Kofferdám gumi 15 x 15, latexmentes",2]
["Lenyomatkanál fém perforált 3-as alsó L3",10]
["Lenyomatkanál fém perforált 3-as felső U3",10]
["Mini Endo Bloc A0327 tűbemérő",31]
["Olló 11,5 cm-es egyenes (Irisz olló)",1]
["Olló 16 cm-es egyenes ASA 0309-1",1]
["Prime gél 29,6gr",10]
["Prophy paszta RDA 170 zöld 70micron",15]
["Rozsdamentes tálca ASA 2737-2 10x20cm",15]
["Színes sapkásüveg kerek barna",10]
["Színes sapkásüveg kerek kék",10]
["Színes sapkásüveg kerek zöld",10]
["Tükörnyél",30]
["Tükörszem ASA 12db/doboz",10]
["Vattarollni csomag",80]
["Vattarollni csomag 1-es méret",5]

{"sheet":"2. részajánlat","index":1,"n_rows":50,"n_cols":2,"rows_kept":50,"cut":false,"hidden":false,"merged":[[0,0,0,1]]}
["2. részajánlati kör"]
["Áru megnevezés","Mennyiség"]
["Borszesz égő üveg",15]
["CaOH2 applikációs kanül műanyag 10db/csomag",30]
["Cement keverő spatula ASA 0903-2(db)",25]
["C-file gyökérkezelő tű 31mm 08 -as 6db/doboz",1]
["C-file gyökérkezelő tű 31mm 10-es  6db/doboz",1]
["Clip F 3x4gr/doboz",3]
["Filtek Supreme Flow A2 2db//csomag",2]
["Filtek Z250 A1 4gr",1]
["Filtek Z250 A2 4gr",2]
["Filtek Z250 A3 4gr",2]
["Fogászati szonda DA1406 (db)",50]
["Gradia direct PA3 4gr",8]
["Gradia Flow A2 2x1,5gr",10]
["Gradia Flow A3 2x1,5gr",6]
["Gradia LoFlo A2 2x1,3gr",7]
["Gradia LoFlo A3 2x1,3gr",4]
["Guttapercha poen 20",20]
["Helioseal F barázdazáró (1,25 gr/fecskendő)",20]
["Hinrichs 68182 habkőpor 1kg medium",3]
["Indurent gél 60ml",15]
["Kanóc borszesz égőhöz 15cm (db)",20]
["Kék gipsz (5 kg/csomag)",60]
["Kemény gipsz Dentona Uni-Base 300 25kg Typ.4 barack",1]
["Kerr tű extra hosszú 45-80 6db/doboz",5]
["Kerr tű Maileffer 006 (6db/doboz)",32]
["Kerr tű Maileffer 008 (6db/doboz)",24]
["Kerr tű Maileffer 010 (6db/doboz)",32]
["Ketac-Molar Easymix Art 56633",12]
["Lenyomatanyag Occlufast Rock (2x50ml)+12 db keverőkanül",20]
["Luxatemp Automix Star A2",20]
["Modellviasz orvosi (rózsa), puha,világos, dob.",25]
["Narancsolaj 250ml",4]
["Occlufine 55304 XF premium zöld spray",3]
["Orthoprint 500gr/csomag",1]
["Oxasil light flow 140ml",15]
["Oxasil mucosa 140ml",10]
["Papírcsúcs 15-40 (doboz)",10]
["Papírcsúcs 55 (doboz)",15]
["Parodontológiai szonda CP15",30]
["Silagum AV Putty 2x262ml",48]
["Silagum Light 2x50ml + 12db keverőcsőr+ 12db intraorális csúcs",32]
["Silagum Lighthoz intraorális csúcs 50db/csomag",10]
["Temp Bond NE 50gr base+15gr katalizátor",15]
["Tena Bip 37*46cm (150db/csomag)",72]
["Titán Trauma sín Medartis TTS-1004",2]
["Üveglap homokolt 95x70x6mm (db)",10]
["Védőszemüveg",15]
["Viaszkés 17,5cm",10]

{"sheet":"3. részajánlat","index":2,"n_rows":54,"n_cols":2,"rows_kept":54,"cut":false,"hidden":false,"merged":[[0,0,0,1]]}
["3. részajánlati kör"]
["Áru megnevezés","Mennyiség"]
["Air-flow sub+supragingival Plus",2]
["Air-flow supragingival Classic Comfort lemon 1903206",2]
["Carlo de Giorgi kauter hegy 10db-os szett",1]
["Dentaurum 123-604-30 ragasztó eltávolító 10db/csomag",2]
["Duran 125x0,75mm 21036 10db 3413/1 round",1]
["Duran 125x0,5mm 21035 10db 3411/1 round",1]
["Edenta C 162.104.016 Surgical HP cutter",15]
["Edenta C 162.316.016 Lindemann fúró",9]
["Edenta RF 162 Lindemann fúró ISO 330 316 408 297 016",15]
["Endo-Solution EDTA folyadék 17% 200ml",4]
["Gyémánt fúró SG 837L 014 806 314 112 544 014",5]
["Gyémánt fúró SG 850 016 806 314 199 544 016",5]
["Gyémánt fúró SG 850 018 806 314 199 544 018",11]
["Glycolon 5/0 HR17 24db/doboz",3]
["Goldent garnitúra 28-as 2 rétegű",70]
["Jelölő gyűrű barna 50db/csomag",2]
["Jelölő gyűrű kék 50db/csomag",2]
["Jelölő gyűrű narancssárga 50db/csomag",4]
["Jelölő gyűrű neon lila 50db/csomag",6]
["Jelölő gyűrű zöld 50db/csomag",2]
["Kerr x-ray holder Paro-bite with ring No:1770 4db/doboz",5]
["Kerr x-ray holder super-bite posterior No:1022 4db/doboz",5]
["KKD Lux-Tray 26100 kék 50db fényre kötő kanálanyag",2]
["Koronafelvágó Edenta C 34L.315 012 db",80]
["Koronafeszítő ASA 2340-1",1]
["Lenyomatkanál szett 8 db-os ASA nem hajlékony alumínium",5]
["MTA + maxi 10x0,14g MTA + 1ml folyadék",1]
["Műanyag lenyomatkanál ASA 2853-E2 alsó+felső (pár)",5]
["Műanyag lenyomatkanál ASA 2853-E3 alsó+felső (pár)",5]
["Műanyag lenyomatkanál ASA 2853-E4 alsó+felső (pár)",5]
["Night Cleaner 800 ml 588665",2]
["Nyálkendő papír+mnűa 60db, 53x80",80]
["Omnia tömlőhuzat latexmentes 50db/doboz",4]
["Op-Dop plexi maszk 3 cserélhető lap/csomag",10]
["OptraGate small szájterpesz",40]
["OptraGate regular szájterpesz",40]
["Oral B Pro Expert  menta 81929 (db)",24]
["Oral B Satin Floss fogselyem (db)",24]
["Oral B Super Floss fogselyem (db)",60]
["Polírkefe mini nylon könyökbe normal 1257RA",50]
["Polírozó csík Soflex 1954",4]
["Polírozó csík Soflex 1956",2]
["Retrakciós fonál 00 ",20]
["Szájterpesztő extraorál Larident A3B",7]
["Szájterpesztő extraorál Larident A2B",5]
["Szajterpesztő Larident A8 felnőtt egyenes műanyag 2db/doboz",30]
["Tector 10ml/doboz",2]
["Tokuyama Shield Force Plus 3ml",6]
["VS FLEXI DPS - Teljes Gépi Gyökérkezelő Tűkészlet 25mm(6 db)",7]
["VS FLEXI DPS - Teljes Gépi Gyökérkezelő Tűkészlet 31mm(6 db)",2]
["W&H hűtőfolyadék-tömlő szerelék implantmotorhoz sterilizálható",5]
["Zetaplus szett",4]

{"sheet":"4. részajánlat","index":3,"n_rows":15,"n_cols":6,"rows_kept":15,"cut":false,"hidden":false,"merged":[[0,0,0,1]]}
["4. részajánlati kör"]
["Áru megnevezés","Mennyiség"]
["Dyract Flow A2 2db/csomag",10,37970,{"$f":"B3*C3","v":379700},15306,{"$f":"B3*E3","v":153060}]
["Dyract Flow A3 2db/csomag",5,37970,189850,15306,{"$f":"B4*E4","v":76530}]
["Niti Flex 15-40 (6db/doboz)",15,14500,217500,4428,66420]
["Prime&bond universal refill 4ml",29,20460,593340,8667,251343]
["Self cure activator 4,5ml",5,46378,231890,18932,94660]
["Waveone Gold Large file 25mm fehér 6db/doboz",2,21426,42852,12171,24342]
["Waveone Gold Medium file 25mm zöld 6db/doboz",2,21426,42852,12171,24342]
["Waveone Gold Paper Points Large",1,10560,10560,4149,4149]
["Waveone Gold Paper Points Medium",1,10560,10560,4149,4149]
["Waveone Gold Primary file 25mm piros 6db/doboz",2,42508,85016,12171,24342]
["Waveone Gold Small file 25mm sárga 6db/doboz",2,42508,85016,12171,24342]
["Waveone Gold Sortiment 31mm 4db/doboz",1,29225,29225,8360,8360]
[null,null,null,{"$f":"SUM(D5:D14)","v":1348811},null,{"$f":"SUM(F3:F14)","v":756039}]